Workbook

Sheet Sheet1
C1: Simulating the
B2: Buffon Needle Problem
B4: This DIGMath module simulates
B5: the Buffon Needle Problem
B6: with n needles of length L.
A9: How many random needles (50-200)? | E9: 61
A12: How long L is each needle (1-12)? | E12: 11
A15: How wide W is the strip (10-90)? | E15: 53
J17: ="Out of "&TEXT(n,"0")&" random needles of length " &TEXT(L,"0")&"," -> Out of 61 random needles of length 11,
J18: =" " & TEXT(dist,"0") & " crossed the strip line " -> 10 crossed the strip line
E19: 0
J20: ="According to probability theory, " -> According to probability theory,
E21: 0 | J21: =" the expected number of 'hits' = "&TEXT(Sheet2!M13,"0.0") -> the expected number of 'hits' = 8.1
J22: =" with a standard deviation = "&TEXT(sd,"0.0") -> with a standard deviation = 2.6
A25: Click each item below for suggestions and investigations
D26: Item 1
D27: Item 2
D28: Item 3
A32: To access/download all the DIGMath Apps for Statistics
A33: Click this link: | C33: DIGMath for Statistics and Probability
A35: Created by: Sheldon P. Gordon & Florence S. Gordon
A36: Farmingdale State College NYIT
A37: Development of this module was supported by the
A38: NSF's Division of Undergraduate Education
A39: under grants DUE-0310123 and DUE-0442160.

Sheet Sheet2
B1: n | C1: x0 | D1: y0 | E1: q | G1: x | H1: y | I1: Count | J1: Either/or
A2: 1 | B2: 1 | C2: =5+95*RAND() -> 15.83085865 | D2: =10+w*RAND() -> 26.30439858 | E2: =359*RAND()*PI()/180 -> 5.71 | G2: =C2 -> 15.83085865 | H2: =D2 -> 26.30439858 | L2: 0.0 | M2: 10
B3: 2 | C3: 80.50653297 | D3: 36.41460824 | E3: 0.73 | G3: =G2+L*COS(E2) -> 25.08410809 | H3: =D2+L*SIN(E2) -> 20.35651032 | I3: =IF(OR(H2<10,H3<10,H2>10+w,H3>10+w),1,0) -> 0 | J3: =I3 -> 0 | L3: 100.0 | M3: 10
B4: 3 | C4: 75.58234484 | D4: 26.21505212 | E4: 0.09
A5: =A2+1 -> 2 | B5: 4 | C5: 17.54245837 | D5: 24.06017305 | E5: 3.01 | G5: =C3 -> 80.50653297 | H5: =D3 -> 36.41460824 | L5: 0 | M5: =10+w -> 63
B6: 5 | C6: 94.29941349 | D6: 31.72380233 | E6: 3.36 | G6: =C3+L*COS(E3) -> 88.73798659 | H6: =D3+L*SIN(E3) -> 43.7114001 | I6: =IF(OR(H5<10,H6<10,H5>10+w,H6>10+w),1,0) -> 0 | J6: =I6 -> 0 | L6: 100 | M6: =10+w -> 63
B7: 6 | C7: 41.91584839 | D7: 43.91189401 | E7: 4.14
A8: =A5+1 -> 3 | B8: 7 | C8: 27.18581274 | D8: 27.96979919 | E8: 0.99 | G8: =C4 -> 75.58234484 | H8: =D4 -> 26.21505212 | L8: 0 | M8: 0
B9: 8 | C9: 26.40159752 | D9: 35.04101426 | E9: 1.27 | G9: =G8+L*COS(E4) -> 86.54029901 | H9: =H8+L*SIN(E4) -> 27.17590614 | I9: =IF(OR(H8<10,H9<10,H8>10+w,H9>10+w),1,0) -> 0 | J9: =I9 -> 0 | L9: 10 | M9: 0
B10: 9 | C10: 54.72574344 | D10: 53.97091686 | E10: 1.29
A11: =A8+1 -> 4 | B11: 10 | C11: 22.04040674 | D11: 24.14943621 | E11: 2.30 | G11: =C5 -> 17.54245837 | H11: =D5 -> 24.06017305 | L11: Number of hits | M11: =SUM(J3:J2000) -> 10
B12: 11 | C12: 59.26724731 | D12: 20.81292376 | E12: 6.07 | G12: =G11+L*COS(E5) -> 6.636424992 | H12: =H11+L*SIN(E5) -> 25.49489811 | I12: =IF(OR(H11<10,H12<10,H11>10+w,H12>10+w),1,0) -> 0 | J12: =I12 -> 0
B13: 12 | C13: 58.53957254 | D13: 18.06391235 | E13: 5.49 | L13: Expected= | M13: =IF(L<=w,2*L/w/PI()*n,2/PI()*ACOS(w/L)+2*L/PI()/w*(1-SQRT(1-(w/L)^2))) -> 8.1
A14: =A11+1 -> 5 | B14: 13 | C14: 6.840824957 | D14: 53.60645696 | E14: 3.30 | G14: =C6 -> 94.29941349 | H14: =D6 -> 31.72380233 | L14: s.d. = | M14: =SQRT(n*M13/n*(1-M13/n)) -> 2.644789227
B15: 14 | C15: 76.47978542 | D15: 24.07114884 | E15: 6.19 | G15: =G14+L*COS(E6) -> 83.55908696 | H15: =H14+L*SIN(E6) -> 29.34780021 | I15: =IF(OR(H14<10,H15<10,H14>10+w,H15>10+w),1,0) -> 0 | J15: =I15 -> 0
B16: 15 | C16: 23.4496459 | D16: 11.47752937 | E16: 1.22
A17: =A14+1 -> 6 | B17: 16 | C17: 98.18176555 | D17: 59.75107597 | E17: 3.73 | G17: =C7 -> 41.91584839 | H17: =D7 -> 43.91189401
B18: 17 | C18: 39.67552508 | D18: 39.16243199 | E18: 5.54 | G18: =G17+L*COS(E7) -> 35.93953566 | H18: =H17+L*SIN(E7) -> 34.67697732 | I18: =IF(OR(H17<10,H18<10,H17>10+w,H18>10+w),1,0) -> 0 | J18: =I18 -> 0
B19: 18 | C19: 37.91902643 | D19: 31.34762131 | E19: 5.97
A20: =A17+1 -> 7 | B20: 19 | C20: 23.49773863 | D20: 52.59671268 | E20: 3.04 | G20: =C8 -> 27.18581274 | H20: =D8 -> 27.96979919
B21: 20 | C21: 65.42477948 | D21: 54.9327941 | E21: 3.40 | G21: =G20+L*COS(E8) -> 33.2421486 | H21: =H20+L*SIN(E8) -> 37.15243475 | I21: =IF(OR(H20<10,H21<10,H20>10+w,H21>10+w),1,0) -> 0 | J21: =I21 -> 0
B22: 21 | C22: 84.77768809 | D22: 34.68124264 | E22: 5.73
A23: =A20+1 -> 8 | B23: 22 | C23: 98.01939359 | D23: 16.43032014 | E23: 3.18 | G23: =C9 -> 26.40159752 | H23: =D9 -> 35.04101426
B24: 23 | C24: 23.61714905 | D24: 61.03098022 | E24: 1.03 | G24: =G23+L*COS(E9) -> 29.61237597 | H24: =H23+L*SIN(E9) -> 45.56198863 | I24: =IF(OR(H23<10,H24<10,H23>10+w,H24>10+w),1,0) -> 0 | J24: =I24 -> 0
B25: 24 | C25: 48.41166348 | D25: 54.22418339 | E25: 5.31
A26: =A23+1 -> 9 | B26: 25 | C26: 20.35497106 | D26: 61.06018897 | E26: 2.67 | G26: =C10 -> 54.72574344 | H26: =D10 -> 53.97091686
B27: 26 | C27: =IF(B27<=n,5+95*RAND(),0) -> 36.73770711 | D27: =IF(B27<=n,10+w*RAND(),0) -> 38.14637642 | E27: =IF(B27<=n,359*RAND()*PI()/180,0) -> 5.56 | G27: =G26+L*COS(E10) -> 57.79866805 | H27: =H26+L*SIN(E10) -> 64.53297795 | I27: =IF(OR(H26<10,H27<10,H26>10+w,H27>10+w),1,0) -> 1 | J27: =I27 -> 1
B28: 27 | C28: 57.53716496 | D28: 51.96593165 | E28: 5.22
A29: =A26+1 -> 10 | B29: 28 | C29: 36.2302026 | D29: 34.98377759 | E29: 3.79 | G29: =C11 -> 22.04040674 | H29: =D11 -> 24.14943621
B30: 29 | C30: 93.30525949 | D30: 50.63759921 | E30: 3.25 | G30: =G29+L*COS(E11) -> 14.74277849 | H30: =H29+L*SIN(E11) -> 32.38014832 | I30: =IF(OR(H29<10,H30<10,H29>10+w,H30>10+w),1,0) -> 0 | J30: =I30 -> 0
B31: 30 | C31: 90.11563244 | D31: 14.59504135 | E31: 2.94
A32: =A29+1 -> 11 | B32: 31 | C32: 62.8244872 | D32: 40.27497209 | E32: 0.13 | G32: =C12 -> 59.26724731 | H32: =D12 -> 20.81292376
B33: 32 | C33: 70.18713469 | D33: 49.73776785 | E33: 6.15 | G33: =G32+L*COS(E12) -> 70.02608712 | H33: =H32+L*SIN(E12) -> 18.52221079 | I33: =IF(OR(H32<10,H33<10,H32>10+w,H33>10+w),1,0) -> 0 | J33: =I33 -> 0
B34: 33 | C34: 7.301763102 | D34: 34.84045797 | E34: 3.09
A35: =A32+1 -> 12 | B35: 34 | C35: 98.52061131 | D35: 48.71519549 | E35: 2.25 | G35: =C13 -> 58.53957254 | H35: =D13 -> 18.06391235
B36: 35 | C36: 14.19274076 | D36: 50.79935357 | E36: 0.83 | G36: =G35+L*COS(E13) -> 66.28184396 | H36: =H35+L*SIN(E13) -> 10.24999954 | I36: =IF(OR(H35<10,H36<10,H35>10+w,H36>10+w),1,0) -> 0 | J36: =I36 -> 0
B37: 36 | C37: 95.99723119 | D37: 14.78394967 | E37: 5.20
A38: =A35+1 -> 13 | B38: 37 | C38: 57.25087299 | D38: 45.3650806 | E38: 0.33 | G38: =C14 -> 6.840824957 | H38: =D14 -> 53.60645696
B39: 38 | C39: 22.07166449 | D39: 21.27169414 | E39: 4.03 | G39: =G38+L*COS(E14) -> -4.013981923 | H39: =H38+L*SIN(E14) -> 51.82511824 | I39: =IF(OR(H38<10,H39<10,H38>10+w,H39>10+w),1,0) -> 0 | J39: =I39 -> 0
B40: 39 | C40: 11.29900684 | D40: 53.50092865 | E40: 5.10
A41: =A38+1 -> 14 | B41: 40 | C41: 65.19940398 | D41: 22.96387403 | E41: 4.94 | G41: =C15 -> 76.47978542 | H41: =D15 -> 24.07114884
B42: 41 | C42: 10.74189852 | D42: 18.99206139 | E42: 0.89 | G42: =G41+L*COS(E15) -> 87.43026361 | H42: =H41+L*SIN(E15) -> 23.02854278 | I42: =IF(OR(H41<10,H42<10,H41>10+w,H42>10+w),1,0) -> 0 | J42: =I42 -> 0
B43: 42 | C43: 82.34001512 | D43: 28.25091442 | E43: 5.93
A44: =A41+1 -> 15 | B44: 43 | C44: 73.24858907 | D44: 13.69840386 | E44: 5.12 | G44: =C16 -> 23.4496459 | H44: =D16 -> 11.47752937
B45: 44 | C45: 99.11551059 | D45: 47.67412243 | E45: 3.98 | G45: =G44+L*COS(E16) -> 27.21744056 | H45: =H44+L*SIN(E16) -> 21.81211806 | I45: =IF(OR(H44<10,H45<10,H44>10+w,H45>10+w),1,0) -> 0 | J45: =I45 -> 0
B46: 45 | C46: 88.11183186 | D46: 14.33777792 | E46: 4.12
A47: =A44+1 -> 16 | B47: 46 | C47: 24.99163066 | D47: 22.69073041 | E47: 2.83 | G47: =C17 -> 98.18176555 | H47: =D17 -> 59.75107597
B48: 47 | C48: 83.52569281 | D48: 53.22045114 | E48: 2.05 | G48: =G47+L*COS(E17) -> 89.02826454 | H48: =H47+L*SIN(E17) -> 53.6507957 | I48: =IF(OR(H47<10,H48<10,H47>10+w,H48>10+w),1,0) -> 0 | J48: =I48 -> 0
B49: 48 | C49: 62.04549273 | D49: 17.55969491 | E49: 0.67
A50: =A47+1 -> 17 | B50: 49 | C50: 5.138796167 | D50: 42.83570757 | E50: 3.90 | G50: =C18 -> 39.67552508 | H50: =D18 -> 39.16243199
B51: 50 | C51: 5.907715516 | D51: 54.28483704 | E51: 2.70 | G51: =G50+L*COS(E18) -> 47.77662757 | H51: =H50+L*SIN(E18) -> 31.72118624 | I51: =IF(OR(H50<10,H51<10,H50>10+w,H51>10+w),1,0) -> 0 | J51: =I51 -> 0
B52: 51 | C52: 53.11686893 | D52: 18.77541798 | E52: 3.08
A53: =A50+1 -> 18 | B53: 52 | C53: 62.99816328 | D53: 50.24668013 | E53: 0.06 | G53: =C19 -> 37.91902643 | H53: =D19 -> 31.34762131
B54: 53 | C54: 35.71851534 | D54: 14.7140813 | E54: 3.52 | G54: =G53+L*COS(E19) -> 48.38241693 | H54: =H53+L*SIN(E19) -> 27.95388308 | I54: =IF(OR(H53<10,H54<10,H53>10+w,H54>10+w),1,0) -> 0 | J54: =I54 -> 0
B55: 54 | C55: 40.58981649 | D55: 11.19802335 | E55: 4.24
A56: =A53+1 -> 19 | B56: 55 | C56: 59.68736784 | D56: 51.8411898 | E56: 3.80 | G56: =C20 -> 23.49773863 | H56: =D20 -> 52.59671268
B57: 56 | C57: 16.78426287 | D57: 14.1615792 | E57: 5.64 | G57: =G56+L*COS(E20) -> 12.55020539 | H57: =H56+L*SIN(E20) -> 53.66979979 | I57: =IF(OR(H56<10,H57<10,H56>10+w,H57>10+w),1,0) -> 0 | J57: =I57 -> 0
B58: 57 | C58: 8.736958547 | D58: 31.89794274 | E58: 1.80
A59: =A56+1 -> 20 | B59: 58 | C59: =IF(B59<=n,5+95*RAND(),0) -> 53.14412558 | D59: =IF(B59<=n,10+w*RAND(),0) -> 61.89470224 | E59: =IF(B59<=n,359*RAND()*PI()/180,0) -> 1.86 | G59: =C21 -> 65.42477948 | H59: =D21 -> 54.9327941
B60: 59 | C60: 34.38173083 | D60: 62.91922866 | E60: 2.21 | G60: =G59+L*COS(E21) -> 54.79018318 | H60: =H59+L*SIN(E21) -> 52.12114662 | I60: =IF(OR(H59<10,H60<10,H59>10+w,H60>10+w),1,0) -> 0 | J60: =I60 -> 0
B61: 60 | C61: 22.71043826 | D61: 30.88898417 | E61: 0.54
A62: =A59+1 -> 21 | B62: 61 | C62: 9.695761833 | D62: 62.85446486 | E62: 3.47 | G62: =C22 -> 84.77768809 | H62: =D22 -> 34.68124264
B63: 62 | C63: 0 | D63: 0 | E63: 0.00 | G63: =G62+L*COS(E22) -> 94.14026702 | H63: =H62+L*SIN(E22) -> 28.90697942 | I63: =IF(OR(H62<10,H63<10,H62>10+w,H63>10+w),1,0) -> 0 | J63: =I63 -> 0
B64: 63 | C64: 0 | D64: 0 | E64: 0.00
A65: =A62+1 -> 22 | B65: 64 | C65: 0 | D65: 0 | E65: 0.00 | G65: =C23 -> 98.01939359 | H65: =D23 -> 16.43032014
B66: 65 | C66: 0 | D66: 0 | E66: 0.00 | G66: =G65+L*COS(E23) -> 87.02589634 | H66: =H65+L*SIN(E23) -> 16.0521428 | I66: =IF(OR(H65<10,H66<10,H65>10+w,H66>10+w),1,0) -> 0 | J66: =I66 -> 0
B67: 66 | C67: 0 | D67: 0 | E67: 0.00
A68: =A65+1 -> 23 | B68: 67 | C68: 0 | D68: 0 | E68: 0.00 | G68: =C24 -> 23.61714905 | H68: =D24 -> 61.03098022
B69: 68 | C69: 0 | D69: 0 | E69: 0.00 | G69: =G68+L*COS(E24) -> 29.2818237 | H69: =H68+L*SIN(E24) -> 70.46026764 | I69: =IF(OR(H68<10,H69<10,H68>10+w,H69>10+w),1,0) -> 1 | J69: =I69 -> 1
B70: 69 | C70: 0 | D70: 0 | E70: 0.00
A71: =A68+1 -> 24 | B71: 70 | C71: 0 | D71: 0 | E71: 0.00 | G71: =C25 -> 48.41166348 | H71: =D25 -> 54.22418339
B72: 71 | C72: 0 | D72: 0 | E72: 0.00 | G72: =G71+L*COS(E25) -> 54.57250807 | H72: =H71+L*SIN(E25) -> 45.11133566 | I72: =IF(OR(H71<10,H72<10,H71>10+w,H72>10+w),1,0) -> 0 | J72: =I72 -> 0
B73: 72 | C73: 0 | D73: 0 | E73: 0.00
A74: =A71+1 -> 25 | B74: 73 | C74: 0 | D74: 0 | E74: 0.00 | G74: =C26 -> 20.35497106 | H74: =D26 -> 61.06018897
B75: 74 | C75: 0 | D75: 0 | E75: 0.00 | G75: =G74+L*COS(E26) -> 10.55250784 | H75: =H74+L*SIN(E26) -> 66.05135265 | I75: =IF(OR(H74<10,H75<10,H74>10+w,H75>10+w),1,0) -> 1 | J75: =I75 -> 1
B76: 75 | C76: 0 | D76: 0 | E76: 0.00
A77: =A74+1 -> 26 | B77: 76 | C77: 0 | D77: 0 | E77: 0.00 | G77: =C27 -> 36.73770711 | H77: =D27 -> 38.14637642
B78: 77 | C78: 0 | D78: 0 | E78: 0.00 | G78: =G77+L*COS(E27) -> 44.99361995 | H78: =H77+L*SIN(E27) -> 30.87727034 | I78: =IF(OR(H77<10,H78<10,H77>10+w,H78>10+w),1,0) -> 0 | J78: =I78 -> 0
B79: 78 | C79: 0 | D79: 0 | E79: 0.00
A80: =A77+1 -> 27 | B80: 79 | C80: 0 | D80: 0 | E80: 0.00 | G80: =C28 -> 57.53716496 | H80: =D28 -> 51.96593165
B81: 80 | C81: 0 | D81: 0 | E81: 0.00 | G81: =G80+L*COS(E28) -> 62.91912553 | H81: =H80+L*SIN(E28) -> 42.37247031 | I81: =IF(OR(H80<10,H81<10,H80>10+w,H81>10+w),1,0) -> 0 | J81: =I81 -> 0
B82: 81 | C82: 0 | D82: 0 | E82: 0.00
A83: =A80+1 -> 28 | B83: 82 | C83: 0 | D83: 0 | E83: 0.00 | G83: =C29 -> 36.2302026 | H83: =D29 -> 34.98377759
B84: 83 | C84: 0 | D84: 0 | E84: 0.00 | G84: =G83+L*COS(E29) -> 27.4469635 | H84: =H83+L*SIN(E29) -> 28.36148865 | I84: =IF(OR(H83<10,H84<10,H83>10+w,H84>10+w),1,0) -> 0 | J84: =I84 -> 0
B85: 84 | C85: 0 | D85: 0 | E85: 0.00
A86: =A83+1 -> 29 | B86: 85 | C86: 0 | D86: 0 | E86: 0.00 | G86: =C30 -> 93.30525949 | H86: =D30 -> 50.63759921
B87: 86 | C87: 0 | D87: 0 | E87: 0.00 | G87: =G86+L*COS(E30) -> 82.36408854 | H87: =H86+L*SIN(E30) -> 49.50147504 | I87: =IF(OR(H86<10,H87<10,H86>10+w,H87>10+w),1,0) -> 0 | J87: =I87 -> 0
B88: 87 | C88: 0 | D88: 0 | E88: 0.00
A89: =A86+1 -> 30 | B89: 88 | C89: 0 | D89: 0 | E89: 0.00 | G89: =C31 -> 90.11563244 | H89: =D31 -> 14.59504135
B90: 89 | C90: 0 | D90: 0 | E90: 0.00 | G90: =G89+L*COS(E31) -> 79.34586562 | H90: =H89+L*SIN(E31) -> 16.83381839 | I90: =IF(OR(H89<10,H90<10,H89>10+w,H90>10+w),1,0) -> 0 | J90: =I90 -> 0
B91: 90 | C91: =IF(B91<=n,5+95*RAND(),0) -> 0 | D91: =IF(B91<=n,10+w*RAND(),0) -> 0 | E91: =IF(B91<=n,359*RAND()*PI()/180,0) -> 0.00
A92: =A89+1 -> 31 | B92: 91 | C92: 0 | D92: 0 | E92: 0.00 | G92: =C32 -> 62.8244872 | H92: =D32 -> 40.27497209
B93: 92 | C93: 0 | D93: 0 | E93: 0.00 | G93: =G92+L*COS(E32) -> 73.72908838 | H93: =H92+L*SIN(E32) -> 41.72054223 | I93: =IF(OR(H92<10,H93<10,H92>10+w,H93>10+w),1,0) -> 0 | J93: =I93 -> 0
B94: 93 | C94: 0 | D94: 0 | E94: 0.00
A95: =A92+1 -> 32 | B95: 94 | C95: 0 | D95: 0 | E95: 0.00 | G95: =C33 -> 70.18713469 | H95: =D33 -> 49.73776785
B96: 95 | C96: 0 | D96: 0 | E96: 0.00 | G96: =G95+L*COS(E33) -> 81.08934854 | H96: =H95+L*SIN(E33) -> 48.2743017 | I96: =IF(OR(H95<10,H96<10,H95>10+w,H96>10+w),1,0) -> 0 | J96: =I96 -> 0
B97: 96 | C97: 0 | D97: 0 | E97: 0.00
A98: =A95+1 -> 33 | B98: 97 | C98: 0 | D98: 0 | E98: 0.00 | G98: =C34 -> 7.301763102 | H98: =D34 -> 34.84045797
B99: 98 | C99: 0 | D99: 0 | E99: 0.00 | G99: =G98+L*COS(E34) -> -3.683362212 | H99: =H98+L*SIN(E34) -> 35.41231619 | I99: =IF(OR(H98<10,H99<10,H98>10+w,H99>10+w),1,0) -> 0 | J99: =I99 -> 0
B100: 99 | C100: 0 | D100: 0 | E100: 0.00
A101: =A98+1 -> 34 | B101: 100 | C101: 0 | D101: 0 | E101: 0.00 | G101: =C35 -> 98.52061131 | H101: =D35 -> 48.71519549
B102: 101 | C102: 0 | D102: 0 | E102: 0.00 | G102: =G101+L*COS(E35) -> 91.58112457 | H102: =H101+L*SIN(E35) -> 57.25003724 | I102: =IF(OR(H101<10,H102<10,H101>10+w,H102>10+w),1,0) -> 0 | J102: =I102 -> 0
B103: 102 | C103: 0 | D103: 0 | E103: 0.00
A104: =A101+1 -> 35 | B104: 103 | C104: 0 | D104: 0 | E104: 0.00 | G104: =C36 -> 14.19274076 | H104: =D36 -> 50.79935357
B105: 104 | C105: 0 | D105: 0 | E105: 0.00 | G105: =G104+L*COS(E36) -> 21.61388934 | H105: =H104+L*SIN(E36) -> 58.91887041 | I105: =IF(OR(H104<10,H105<10,H104>10+w,H105>10+w),1,0) -> 0 | J105: =I105 -> 0
B106: 105 | C106: 0 | D106: 0 | E106: 0.00
A107: =A104+1 -> 36 | B107: 106 | C107: 0 | D107: 0 | E107: 0.00 | G107: =C37 -> 95.99723119 | H107: =D37 -> 14.78394967
B108: 107 | C108: 0 | D108: 0 | E108: 0.00 | G108: =G107+L*COS(E37) -> 101.1934106 | H108: =H107+L*SIN(E37) -> 5.088604411 | I108: =IF(OR(H107<10,H108<10,H107>10+w,H108>10+w),1,0) -> 1 | J108: =I108 -> 1
B109: 108 | C109: 0 | D109: 0 | E109: 0.00
A110: =A107+1 -> 37 | B110: 109 | C110: 0 | D110: 0 | E110: 0.00 | G110: =C38 -> 57.25087299 | H110: =D38 -> 45.3650806
B111: 110 | C111: 0 | D111: 0 | E111: 0.00 | G111: =G110+L*COS(E38) -> 67.64812476 | H111: =H110+L*SIN(E38) -> 48.95634162 | I111: =IF(OR(H110<10,H111<10,H110>10+w,H111>10+w),1,0) -> 0 | J111: =I111 -> 0
B112: 111 | C112: 0 | D112: 0 | E112: 0.00
A113: =A110+1 -> 38 | B113: 112 | C113: 0 | D113: 0 | E113: 0.00 | G113: =C39 -> 22.07166449 | H113: =D39 -> 21.27169414
B114: 113 | C114: 0 | D114: 0 | E114: 0.00 | G114: =G113+L*COS(E39) -> 15.1601997 | H114: =H113+L*SIN(E39) -> 12.71414458 | I114: =IF(OR(H113<10,H114<10,H113>10+w,H114>10+w),1,0) -> 0 | J114: =I114 -> 0
B115: 114 | C115: 0 | D115: 0 | E115: 0.00
A116: =A113+1 -> 39 | B116: 115 | C116: 0 | D116: 0 | E116: 0.00 | G116: =C40 -> 11.29900684 | H116: =D40 -> 53.50092865
B117: 116 | C117: 0 | D117: 0 | E117: 0.00 | G117: =G116+L*COS(E40) -> 15.48014935 | H117: =H116+L*SIN(E40) -> 43.32654674 | I117: =IF(OR(H116<10,H117<10,H116>10+w,H117>10+w),1,0) -> 0 | J117: =I117 -> 0
B118: 117 | C118: 0 | D118: 0 | E118: 0.00
A119: =A116+1 -> 40 | B119: 118 | C119: 0 | D119: 0 | E119: 0.00 | G119: =C41 -> 65.19940398 | H119: =D41 -> 22.96387403
B120: 119 | C120: 0 | D120: 0 | E120: 0.00 | G120: =G119+L*COS(E41) -> 67.69613519 | H120: =H119+L*SIN(E41) -> 12.25096905 | I120: =IF(OR(H119<10,H120<10,H119>10+w,H120>10+w),1,0) -> 0 | J120: =I120 -> 0
B121: 120 | C121: 0 | D121: 0 | E121: 0.00
A122: =A119+1 -> 41 | B122: 121 | C122: 0 | D122: 0 | E122: 0.00 | G122: =C42 -> 10.74189852 | H122: =D42 -> 18.99206139
B123: 122 | C123: =IF(B123<=n,5+95*RAND(),0) -> 0 | D123: =IF(B123<=n,10+w*RAND(),0) -> 0 | E123: =IF(B123<=n,359*RAND()*PI()/180,0) -> 0.00 | G123: =G122+L*COS(E42) -> 17.66692511 | H123: =H122+L*SIN(E42) -> 27.53864005 | I123: =IF(OR(H122<10,H123<10,H122>10+w,H123>10+w),1,0) -> 0 | J123: =I123 -> 0
B124: 123 | C124: 0 | D124: 0 | E124: 0.00
A125: =A122+1 -> 42 | B125: 124 | C125: 0 | D125: 0 | E125: 0.00 | G125: =C43 -> 82.34001512 | H125: =D43 -> 28.25091442
B126: 125 | C126: 0 | D126: 0 | E126: 0.00 | G126: =G125+L*COS(E43) -> 92.65636993 | H126: =H125+L*SIN(E43) -> 24.43347764 | I126: =IF(OR(H125<10,H126<10,H125>10+w,H126>10+w),1,0) -> 0 | J126: =I126 -> 0
B127: 126 | C127: 0 | D127: 0 | E127: 0.00
A128: =A125+1 -> 43 | B128: 127 | C128: 0 | D128: 0 | E128: 0.00 | G128: =C44 -> 73.24858907 | H128: =D44 -> 13.69840386
B129: 128 | C129: 0 | D129: 0 | E129: 0.00 | G129: =G128+L*COS(E44) -> 77.65438788 | H129: =H128+L*SIN(E44) -> 3.619270121 | I129: =IF(OR(H128<10,H129<10,H128>10+w,H129>10+w),1,0) -> 1 | J129: =I129 -> 1
B130: 129 | C130: 0 | D130: 0 | E130: 0.00
A131: =A128+1 -> 44 | B131: 130 | C131: 0 | D131: 0 | E131: 0.00 | G131: =C45 -> 99.11551059 | H131: =D45 -> 47.67412243
B132: 131 | C132: 0 | D132: 0 | E132: 0.00 | G132: =G131+L*COS(E45) -> 91.75954594 | H132: =H131+L*SIN(E45) -> 39.49550494 | I132: =IF(OR(H131<10,H132<10,H131>10+w,H132>10+w),1,0) -> 0 | J132: =I132 -> 0
B133: 132 | C133: 0 | D133: 0 | E133: 0.00
A134: =A131+1 -> 45 | B134: 133 | C134: 0 | D134: 0 | E134: 0.00 | G134: =C46 -> 88.11183186 | H134: =D46 -> 14.33777792
B135: 134 | C135: 0 | D135: 0 | E135: 0.00 | G135: =G134+L*COS(E46) -> 81.9578132 | H135: =H134+L*SIN(E46) -> 5.220319157 | I135: =IF(OR(H134<10,H135<10,H134>10+w,H135>10+w),1,0) -> 1 | J135: =I135 -> 1
B136: 135 | C136: 0 | D136: 0 | E136: 0.00
A137: =A134+1 -> 46 | B137: 136 | C137: 0 | D137: 0 | E137: 0.00 | G137: =C47 -> 24.99163066 | H137: =D47 -> 22.69073041
B138: 137 | C138: 0 | D138: 0 | E138: 0.00 | G138: =G137+L*COS(E47) -> 14.5320677 | H138: =H137+L*SIN(E47) -> 26.09624692 | I138: =IF(OR(H137<10,H138<10,H137>10+w,H138>10+w),1,0) -> 0 | J138: =I138 -> 0
B139: 138 | C139: 0 | D139: 0 | E139: 0.00
A140: =A137+1 -> 47 | B140: 139 | C140: 0 | D140: 0 | E140: 0.00 | G140: =C48 -> 83.52569281 | H140: =D48 -> 53.22045114
B141: 140 | C141: 0 | D141: 0 | E141: 0.00 | G141: =G140+L*COS(E48) -> 78.42502777 | H141: =H140+L*SIN(E48) -> 62.96638445 | I141: =IF(OR(H140<10,H141<10,H140>10+w,H141>10+w),1,0) -> 0 | J141: =I141 -> 0
B142: 141 | C142: 0 | D142: 0 | E142: 0.00
A143: =A140+1 -> 48 | B143: 142 | C143: 0 | D143: 0 | E143: 0.00 | G143: =C49 -> 62.04549273 | H143: =D49 -> 17.55969491
B144: 143 | C144: 0 | D144: 0 | E144: 0.00 | G144: =G143+L*COS(E49) -> 70.66569225 | H144: =H143+L*SIN(E49) -> 24.39286111 | I144: =IF(OR(H143<10,H144<10,H143>10+w,H144>10+w),1,0) -> 0 | J144: =I144 -> 0
B145: 144 | C145: 0 | D145: 0 | E145: 0.00
A146: =A143+1 -> 49 | B146: 145 | C146: 0 | D146: 0 | E146: 0.00 | G146: =C50 -> 5.138796167 | H146: =D50 -> 42.83570757
B147: 146 | C147: 0 | D147: 0 | E147: 0.00 | G147: =G146+L*COS(E50) -> -2.828608357 | H147: =H146+L*SIN(E50) -> 35.25148282 | I147: =IF(OR(H146<10,H147<10,H146>10+w,H147>10+w),1,0) -> 0 | J147: =I147 -> 0
B148: 147 | C148: 0 | D148: 0 | E148: 0.00
A149: =A146+1 -> 50 | B149: 148 | C149: 0 | D149: 0 | E149: 0.00 | G149: =C51 -> 5.907715516 | H149: =D51 -> 54.28483704
B150: 149 | C150: 0 | D150: 0 | E150: 0.00 | G150: =G149+L*COS(E51) -> -4.042367472 | H150: =H149+L*SIN(E51) -> 58.97481023 | I150: =IF(OR(H149<10,H150<10,H149>10+w,H150>10+w),1,0) -> 0 | J150: =I150 -> 0
B151: 150 | C151: 0 | D151: 0 | E151: 0.00
A152: =A149+1 -> 51 | B152: 151 | C152: 0 | D152: 0 | E152: 0.00 | G152: =C52 -> 53.11686893 | H152: =D52 -> 18.77541798
A153: =A152 -> 51 | B153: 152 | C153: 0 | D153: 0 | E153: 0.00 | G153: =G152+L*COS(E52) -> 42.13604466 | H153: =H152+L*SIN(E52) -> 19.42464706 | I153: =IF(OR(H152<10,H153<10,H152>10+w,H153>10+w),1,0) -> 0 | J153: =IF(n>=A153,I153,0) -> 0
A154: =A152 -> 51 | B154: 153 | C154: 0 | D154: 0 | E154: 0.00
A155: =A152+1 -> 52 | B155: 154 | C155: =IF(B155<=n,5+95*RAND(),0) -> 0 | D155: =IF(B155<=n,10+w*RAND(),0) -> 0 | E155: =IF(B155<=n,359*RAND()*PI()/180,0) -> 0.00 | G155: =C53 -> 62.99816328 | H155: =D53 -> 50.24668013
A156: =A155 -> 52 | B156: 155 | C156: 0 | D156: 0 | E156: 0.00 | G156: =G155+L*COS(E53) -> 73.97598563 | H156: =H155+L*SIN(E53) -> 50.94483225 | I156: =IF(OR(H155<10,H156<10,H155>10+w,H156>10+w),1,0) -> 0 | J156: =IF(n>=A156,I156,0) -> 0
A157: =A155 -> 52 | B157: 156 | C157: 0 | D157: 0 | E157: 0.00
A158: =A155+1 -> 53 | B158: 157 | C158: 0 | D158: 0 | E158: 0.00 | G158: =C54 -> 35.71851534 | H158: =D54 -> 14.7140813
A159: =A158 -> 53 | B159: 158 | C159: 0 | D159: 0 | E159: 0.00 | G159: =G158+L*COS(E54) -> 25.50072186 | H159: =H158+L*SIN(E54) -> 10.64017698 | I159: =IF(OR(H158<10,H159<10,H158>10+w,H159>10+w),1,0) -> 0 | J159: =IF(n>=A159,I159,0) -> 0
A160: =A158 -> 53 | B160: 159 | C160: 0 | D160: 0 | E160: 0.00
A161: =A158+1 -> 54 | B161: 160 | C161: 0 | D161: 0 | E161: 0.00 | G161: =C55 -> 40.58981649 | H161: =D55 -> 11.19802335
A162: =A161 -> 54 | B162: 161 | C162: 0 | D162: 0 | E162: 0.00 | G162: =G161+L*COS(E55) -> 35.59246973 | H162: =H161+L*SIN(E55) -> 1.398710863 | I162: =IF(OR(H161<10,H162<10,H161>10+w,H162>10+w),1,0) -> 1 | J162: =IF(n>=A162,I162,0) -> 1
A163: =A161 -> 54 | B163: 162 | C163: 0 | D163: 0 | E163: 0.00
A164: =A161+1 -> 55 | B164: 163 | C164: 0 | D164: 0 | E164: 0.00 | G164: =C56 -> 59.68736784 | H164: =D56 -> 51.8411898
A165: =A164 -> 55 | B165: 164 | C165: 0 | D165: 0 | E165: 0.00 | G165: =G164+L*COS(E56) -> 50.96028293 | H165: =H164+L*SIN(E56) -> 45.14507234 | I165: =IF(OR(H164<10,H165<10,H164>10+w,H165>10+w),1,0) -> 0 | J165: =IF(n>=A165,I165,0) -> 0
A166: =A164 -> 55 | B166: 165 | C166: 0 | D166: 0 | E166: 0.00
A167: =A164+1 -> 56 | B167: 166 | C167: 0 | D167: 0 | E167: 0.00 | G167: =C57 -> 16.78426287 | H167: =D57 -> 14.1615792
A168: =A167 -> 56 | B168: 167 | C168: 0 | D168: 0 | E168: 0.00 | G168: =G167+L*COS(E57) -> 25.56514745 | H168: =H167+L*SIN(E57) -> 7.536168574 | I168: =IF(OR(H167<10,H168<10,H167>10+w,H168>10+w),1,0) -> 1 | J168: =IF(n>=A168,I168,0) -> 1
A169: =A167 -> 56 | B169: 168 | C169: 0 | D169: 0 | E169: 0.00
A170: =A167+1 -> 57 | B170: 169 | C170: 0 | D170: 0 | E170: 0.00 | G170: =C58 -> 8.736958547 | H170: =D58 -> 31.89794274
A171: =A170 -> 57 | B171: 170 | C171: 0 | D171: 0 | E171: 0.00 | G171: =G170+L*COS(E58) -> 6.243975241 | H171: =H170+L*SIN(E58) -> 42.61172052 | I171: =IF(OR(H170<10,H171<10,H170>10+w,H171>10+w),1,0) -> 0 | J171: =IF(n>=A171,I171,0) -> 0
A172: =A170 -> 57 | B172: 171 | C172: 0 | D172: 0 | E172: 0.00
A173: =A170+1 -> 58 | B173: 172 | C173: 0 | D173: 0 | E173: 0.00 | G173: =C59 -> 53.14412558 | H173: =D59 -> 61.89470224
A174: =A173 -> 58 | B174: 173 | C174: 0 | D174: 0 | E174: 0.00 | G174: =G173+L*COS(E59) -> 50.01463863 | H174: =H173+L*SIN(E59) -> 72.44014255 | I174: =IF(OR(H173<10,H174<10,H173>10+w,H174>10+w),1,0) -> 1 | J174: =IF(n>=A174,I174,0) -> 1
A175: =A173 -> 58 | B175: 174 | C175: 0 | D175: 0 | E175: 0.00
A176: =A173+1 -> 59 | B176: 175 | C176: 0 | D176: 0 | E176: 0.00 | G176: =C60 -> 34.38173083 | H176: =D60 -> 62.91922866
A177: =A176 -> 59 | B177: 176 | C177: 0 | D177: 0 | E177: 0.00 | G177: =G176+L*COS(E60) -> 27.84485417 | H177: =H176+L*SIN(E60) -> 71.76621931 | I177: =IF(OR(H176<10,H177<10,H176>10+w,H177>10+w),1,0) -> 1 | J177: =IF(n>=A177,I177,0) -> 1
A178: =A176 -> 59 | B178: 177 | C178: 0 | D178: 0 | E178: 0.00
A179: =A176+1 -> 60 | B179: 178 | C179: 0 | D179: 0 | E179: 0.00 | G179: =C61 -> 22.71043826 | H179: =D61 -> 30.88898417
A180: =A179 -> 60 | B180: 179 | C180: 0 | D180: 0 | E180: 0.00 | G180: =G179+L*COS(E61) -> 32.16719548 | H180: =H179+L*SIN(E61) -> 36.50768001 | I180: =IF(OR(H179<10,H180<10,H179>10+w,H180>10+w),1,0) -> 0 | J180: =IF(n>=A180,I180,0) -> 0
A181: =A179 -> 60 | B181: 180 | C181: 0 | D181: 0 | E181: 0.00
A182: =A179+1 -> 61 | B182: 181 | C182: 0 | D182: 0 | E182: 0.00 | G182: =C62 -> 9.695761833 | H182: =D62 -> 62.85446486
A183: =A182 -> 61 | B183: 182 | C183: 0 | D183: 0 | E183: 0.00 | G183: =G182+L*COS(E62) -> -0.7200695918 | H183: =H182+L*SIN(E62) -> 59.3174526 | I183: =IF(OR(H182<10,H183<10,H182>10+w,H183>10+w),1,0) -> 0 | J183: =IF(n>=A183,I183,0) -> 0
A184: =A182 -> 61 | B184: 183 | C184: 0 | D184: 0 | E184: 0.00
A185: =A182+1 -> 62 | B185: 184 | C185: 0 | D185: 0 | E185: 0.00 | G185: =C63 -> 0 | H185: =D63 -> 0
A186: =A185 -> 62 | B186: 185 | C186: 0 | D186: 0 | E186: 0.00 | G186: =G185+L*COS(E63) -> 11 | H186: =H185+L*SIN(E63) -> 0 | I186: =IF(OR(H185<10,H186<10,H185>10+w,H186>10+w),1,0) -> 1 | J186: =IF(n>=A186,I186,0) -> 0
A187: =A185 -> 62 | B187: 186 | C187: =IF(B187<=n,5+95*RAND(),0) -> 0 | D187: =IF(B187<=n,10+w*RAND(),0) -> 0 | E187: =IF(B187<=n,359*RAND()*PI()/180,0) -> 0.00
A188: =A185+1 -> 63 | B188: 187 | C188: 0 | D188: 0 | E188: 0.00 | G188: =C64 -> 0 | H188: =D64 -> 0
A189: =A188 -> 63 | B189: 188 | C189: 0 | D189: 0 | E189: 0.00 | G189: =G188+L*COS(E64) -> 11 | H189: =H188+L*SIN(E64) -> 0 | I189: =IF(OR(H188<10,H189<10,H188>10+w,H189>10+w),1,0) -> 1 | J189: =IF(n>=A189,I189,0) -> 0
A190: =A188 -> 63 | B190: 189 | C190: 0 | D190: 0 | E190: 0.00
A191: =A188+1 -> 64 | B191: 190 | C191: 0 | D191: 0 | E191: 0.00 | G191: =C65 -> 0 | H191: =D65 -> 0
A192: =A191 -> 64 | B192: 191 | C192: 0 | D192: 0 | E192: 0.00 | G192: =G191+L*COS(E65) -> 11 | H192: =H191+L*SIN(E65) -> 0 | I192: =IF(OR(H191<10,H192<10,H191>10+w,H192>10+w),1,0) -> 1 | J192: =IF(n>=A192,I192,0) -> 0
A193: =A191 -> 64 | B193: 192 | C193: 0 | D193: 0 | E193: 0.00
A194: =A191+1 -> 65 | B194: 193 | C194: 0 | D194: 0 | E194: 0.00 | G194: =C66 -> 0 | H194: =D66 -> 0
A195: =A194 -> 65 | B195: 194 | C195: 0 | D195: 0 | E195: 0.00 | G195: =G194+L*COS(E66) -> 11 | H195: =H194+L*SIN(E66) -> 0 | I195: =IF(OR(H194<10,H195<10,H194>10+w,H195>10+w),1,0) -> 1 | J195: =IF(n>=A195,I195,0) -> 0
A196: =A194 -> 65 | B196: 195 | C196: 0 | D196: 0 | E196: 0.00
A197: =A194+1 -> 66 | B197: 196 | C197: 0 | D197: 0 | E197: 0.00 | G197: =C67 -> 0 | H197: =D67 -> 0
A198: =A197 -> 66 | B198: 197 | C198: 0 | D198: 0 | E198: 0.00 | G198: =G197+L*COS(E67) -> 11 | H198: =H197+L*SIN(E67) -> 0 | I198: =IF(OR(H197<10,H198<10,H197>10+w,H198>10+w),1,0) -> 1 | J198: =IF(n>=A198,I198,0) -> 0
A199: =A197 -> 66 | B199: 198 | C199: 0 | D199: 0 | E199: 0.00
A200: =A197+1 -> 67 | B200: 199 | C200: 0 | D200: 0 | E200: 0.00 | G200: =C68 -> 0 | H200: =D68 -> 0
... 401 more rows

Sheet Sheet3

Sheet Sheet4
